bitfinex-derivatives/quotes_BTCF0:USTF0_20260214
["timestamp","ask_amount","ask_price","bid_price","bid_amount"]
[1771056623846,0.01464,69524.0,69518.0,0.014392]
[1771056624047,0.01439,69529.0,69518.0,0.014392]
[1771056624048,0.014389,69534.0,69526.0,0.01439]
[1771056624344,0.01464,69532.0,69525.0,0.014391]
[1771056624547,0.029029,69532.0,69524.0,0.014391]
[1771056624746,0.07191605,69526.0,69524.0,0.014391]
[1771056625546,0.01439,69531.0,69525.0,0.014391]
[1771056625847,0.44315937,69541.0,69525.0,0.029031]
[1771056626044,0.07191238,69529.0,69528.0,0.01439]
[1771056626349,0.014389,69535.0,69528.0,0.01439]
[1771056626551,0.00596087,69529.0,69528.0,0.01439]
[1771056627050,0.00596087,69529.0,69527.0,0.01439]
[1771056627248,0.014388,69536.0,69529.0,0.01439]
[1771056627553,0.014386,69547.0,69525.0,0.033031]
[1771056627554,4.4e-07,69529.0,69527.0,0.15827]
[1771056627848,0.014387,69541.0,69534.0,0.014389]
[1771056628045,0.07190258,69536.0,69535.0,0.01464]
[1771056628238,0.07190258,69536.0,69535.0,0.029029]
[1771056629356,0.07190258,69536.0,69535.0,0.039029]
[1771056629552,0.07190258,69536.0,69535.0,0.02464]
[1771056630038,0.01464,69544.0,69536.0,0.014388]
[1771056630238,0.029027,69544.0,69536.0,0.014388]
[1771056630444,0.01464,69545.0,69539.0,0.014388]
[1771056630748,0.0719,69541.0,69537.0,0.014388]
[1771056630950,0.0719,69541.0,69538.0,0.01464]
[1771056631750,0.0719,69541.0,69536.0,0.022388]
[1771056631751,0.0719,69541.0,69536.0,0.008]
[1771056632051,0.014388,69539.0,69537.0,0.01464]
[1771056632453,0.014388,69540.0,69537.0,0.01464]
[1771056632843,0.014388,69539.0,69537.0,0.01464]
[1771056633048,0.014388,69540.0,69537.0,0.01464]
[1771056633242,0.014388,69540.0,69537.0,0.02264]
[1771056634348,0.014388,69540.0,69536.0,0.01464]
[1771056634844,0.086287,69541.0,69537.0,0.007]
[1771056635251,0.0719,69541.0,69539.0,0.014388]
[1771056635448,0.014386,69548.0,69542.0,0.014387]
[1771056635752,0.014386,69547.0,69542.0,0.014387]
[1771056635959,0.07189689,69544.0,69539.0,0.029028]
[1771056636454,0.07189689,69544.0,69540.0,0.014387]
[1771056636846,0.07189689,69544.0,69539.0,0.036028]
[1771056637046,0.08628389,69544.0,69539.0,0.036028]
[1771056637454,0.014387,69543.0,69538.0,0.01464]
[1771056637658,0.014388,69538.0,69537.0,0.01464]
[1771056637948,0.014388,69538.0,69532.0,0.158269]
[1771056638148,0.014388,69537.0,69533.0,0.014389]
[1771056638354,0.014388,69538.0,69534.0,0.01464]
[1771056639058,0.08653689,69544.0,69506.0,0.45875291]
[1771056639059,0.44526997,69528.0,69506.0,0.45875291]
[1771056639252,0.08628789,69525.0,69518.0,0.014392]
[1771056640158,0.08628789,69525.0,69517.0,0.014392]
[1771056640159,0.014392,69522.0,69519.0,0.01464]
[1771056640350,8.9e-07,69518.0,69517.0,0.029032]
[1771056640551,0.014391,69525.0,69519.0,0.014392]
[1771056640752,0.014391,69525.0,69518.0,0.014392]
[1771056640753,0.01464,69527.0,69522.0,0.014391]
[1771056641050,0.02903,69527.0,69517.0,0.00964]
[1771056641258,0.02903,69527.0,69521.0,0.005]
[1771056641458,0.05252959,69520.0,69519.0,0.014392]
[1771056642158,0.05252959,69520.0,69518.0,0.014392]
[1771056642358,0.05252959,69520.0,69517.0,0.024032]
[1771056642950,0.05252959,69520.0,69517.0,0.014392]
[1771056643258,0.05252959,69520.0,69519.0,0.014392]
[1771056643446,0.05252959,69520.0,69519.0,0.017392]
[1771056643650,0.05252959,69520.0,69519.0,0.003]
[1771056644555,0.05252959,69520.0,69518.0,0.014392]
[1771056644755,0.05252959,69520.0,69519.0,0.014392]
[1771056644952,0.03513849,69520.0,69518.0,0.014392]
[1771056645158,0.04953049,69520.0,69516.0,0.01464]
[1771056647463,0.04953049,69520.0,69515.0,0.014393]
[1771056647664,0.04953049,69520.0,69516.0,0.01464]
[1771056647861,0.014392,69519.0,69516.0,0.01464]
[1771056648459,0.04953049,69520.0,69516.0,0.01464]
[1771056649468,0.03513849,69520.0,69516.0,0.029033]
[1771056649674,0.03513849,69520.0,69517.0,0.014392]
[1771056649963,0.03513849,69520.0,69510.0,0.014394]
[1771056649964,0.03513849,69520.0,69502.0,0.43161215]
[1771056650163,0.4554246,69518.0,69509.0,0.014394]
[1771056650470,0.04977849,69520.0,69513.0,0.014393]
[1771056650762,0.04977849,69520.0,69515.0,0.014393]
[1771056650973,0.04977849,69520.0,69517.0,0.014392]
[1771056651472,0.04977849,69520.0,69516.0,0.014393]
[1771056651774,0.04977849,69520.0,69513.0,0.014393]
[1771056651977,0.01439,69529.0,69521.0,0.014391]
[1771056652176,0.014391,69523.0,69513.0,0.014393]
[1771056652366,2e-07,69514.0,69513.0,0.014393]
[1771056652872,0.01464,69524.0,69520.0,0.014392]
[1771056653181,0.4410326,69532.0,69523.0,0.014391]
[1771056653370,0.01464,69531.0,69525.0,0.014391]
[1771056653671,9.2e-07,69524.0,69521.0,0.014392]
[1771056653877,4e-07,69524.0,69521.0,0.014392]
[1771056654172,4e-07,69524.0,69523.0,0.014391]
[1771056654775,4e-07,69524.0,69521.0,0.014392]
[1771056655779,4e-07,69524.0,69523.0,0.014391]
[1771056656768,4e-07,69524.0,69515.0,0.014393]
[1771056656769,4e-07,69515.0,69513.0,0.014393]
[1771056656974,4e-07,69515.0,69507.0,0.01464]
[1771056657174,4e-07,69515.0,69508.0,0.014394]
[1771056657775,4e-07,69515.0,69509.0,0.01464]
[1771056658885,4e-07,69515.0,69510.0,0.014394]
[1771056659087,4e-07,69515.0,69509.0,0.029034]
[1771056659088,4e-07,69515.0,69509.0,0.01464]
[1771056660273,0.014393,69514.0,69509.0,0.01464]
[1771056660485,0.07192797,69514.0,69511.0,0.014394]
[1771056660681,0.01464,69519.0,69512.0,0.014393]
[1771056660887,0.014392,69520.0,69513.0,0.029033]
[1771056661387,0.07192796,69514.0,69513.0,0.029033]
[1771056661779,9.6e-07,69514.0,69513.0,0.029033]
[1771056661980,0.014392,69519.0,69513.0,0.029033]
[1771056662284,0.07192795,69514.0,69513.0,0.01464]
[1771056662484,0.014392,69518.0,69513.0,0.01464]
[1771056662680,0.07192796,69514.0,69509.0,0.014394]
[1771056662887,0.05728796,69514.0,69510.0,0.029034]
[1771056663582,0.014393,69516.0,69510.0,0.01464]
[1771056663787,0.029031,69523.0,69512.0,0.014393]
[1771056663976,0.07192795,69514.0,69513.0,0.01464]
[1771056664176,0.014391,69522.0,69513.0,0.01464]
[1771056664375,0.11375488,69546.0,69513.0,0.01464]
[1771056664376,0.01464,69533.0,69525.0,0.014391]
[1771056664580,0.01439,69530.0,69525.0,0.01464]
[1771056664781,0.05727761,69524.0,69523.0,0.014391]
[1771056664981,0.01439,69530.0,69523.0,0.043422]
[1771056665182,0.0719174,69524.0,69523.0,0.029031]
[1771056665681,0.014391,69525.0,69523.0,0.01464]
[1771056665887,0.07191761,69524.0,69522.0,0.01464]
[1771056666284,0.01439,69527.0,69522.0,0.01464]
[1771056666590,0.07191761,69524.0,69522.0,0.01464]
[1771056666791,0.014389,69532.0,69524.0,0.014391]
[1771056666992,0.014388,69538.0,69525.0,0.01464]
[1771056667285,6.1e-07,69524.0,69523.0,0.015391]
[1771056667486,0.014389,69532.0,69525.0,0.014391]
[1771056667686,0.014389,69536.0,69522.0,0.14692]
[1771056667992,4e-07,69524.0,69523.0,0.029031]
[1771056668193,0.014387,69544.0,69533.0,0.014389]
[1771056668393,0.014387,69544.0,69530.0,0.01439]
[1771056668394,0.014388,69538.0,69534.0,0.01464]
[1771056668595,0.07189527,69537.0,69534.0,0.01464]
[1771056668786,0.08628327,69537.0,69534.0,0.01464]
[1771056668986,0.07189527,69537.0,69534.0,0.01464]
[1771056669490,0.014387,69542.0,69534.0,0.029029]
[1771056669686,0.07190416,69537.0,69534.0,0.029029]
[1771056669893,0.028774,69542.0,69534.0,0.029029]
[1771056670093,0.05726417,69537.0,69534.0,0.029029]
[1771056670294,0.05726417,69537.0,69534.0,0.01464]
[1771056671500,0.05726417,69537.0,69534.0,0.01564]
[1771056671792,0.05726417,69537.0,69534.0,0.030029]
[1771056673092,0.05726417,69537.0,69531.0,0.014389]
[1771056673286,0.07165217,69537.0,69532.0,0.014389]
[1771056673492,0.014388,69536.0,69534.0,0.001]
[1771056673795,0.05726417,69537.0,69531.0,0.01464]
[1771056673987,0.05726417,69537.0,69534.0,0.001]
[1771056674190,0.05726417,69537.0,69532.0,0.014389]
[1771056674387,0.07165217,69537.0,69532.0,0.014389]
[1771056674793,0.014389,69536.0,69532.0,0.014389]
[1771056674991,0.07165217,69537.0,69530.0,0.01037642]
[1771056675294,0.01439,69527.0,69523.0,0.01484]
[1771056675493,0.01439,69527.0,69524.0,0.01464]
[1771056675698,0.014391,69526.0,69521.0,0.014392]
[1771056675898,0.01439,69527.0,69519.0,0.158312]
[1771056676194,0.01439,69527.0,69521.0,0.014392]
[1771056676195,0.014391,69526.0,69521.0,0.014392]
[1771056676400,0.014391,69523.0,69518.0,0.014392]
[1771056676602,0.014391,69523.0,69519.0,0.01464]
[1771056676893,0.014391,69523.0,69520.0,0.01464]
[1771056677092,0.028782,69524.0,69518.0,0.014392]
[1771056677290,0.014391,69523.0,69518.0,0.028784]
[1771056677488,0.014391,69524.0,69519.0,0.029032]
[1771056677699,0.028782,69524.0,69519.0,0.01464]
[1771056677897,0.028782,69524.0,69514.0,0.014393]
[1771056677898,0.014392,69518.0,69512.0,0.029033]
[1771056678097,0.014392,69518.0,69506.0,0.14392]
[1771056678098,0.014392,69518.0,69511.0,0.029034]
[1771056678400,0.014393,69517.0,69512.0,0.014393]
[1771056678696,0.05726417,69517.0,69513.0,0.014393]
[1771056678897,0.05726417,69517.0,69514.0,0.01464]
[1771056679097,0.05726417,69517.0,69513.0,0.014393]
[1771056679294,0.05726417,69517.0,69505.0,0.014395]
[1771056679493,0.05726417,69517.0,69506.0,0.15856]
[1771056679699,0.01464,69521.0,69516.0,0.014393]
[1771056679893,0.07194209,69517.0,69516.0,0.014393]
[1771056680298,0.58854613,69530.0,69513.0,0.01464]
[1771056680498,0.44462613,69534.0,69516.0,0.4620978]
[1771056680695,1.2e-07,69522.0,69520.0,0.014392]
[1771056680891,0.01464,69528.0,69524.0,0.028782]
[1771056681191,0.07191529,69526.0,69524.0,0.014391]
[1771056681395,0.07191529,69526.0,69516.0,0.014393]
[1771056681396,0.07191529,69526.0,69521.0,0.014391]
[1771056681800,0.07191529,69526.0,69521.0,0.029031]
[1771056682697,0.08630629,69526.0,69521.0,0.029031]
[1771056682895,0.014391,69524.0,69521.0,0.01464]
[1771056683091,0.05727529,69519.0,69518.0,0.01464]
[1771056683497,0.05727529,69519.0,69516.0,0.01464]
[1771056683703,0.05727529,69519.0,69516.0,0.014392]
[1771056684089,0.05727529,69519.0,69516.0,0.029033]
[1771056684500,0.07166729,69519.0,69516.0,0.01464]
[1771056684696,0.05727529,69519.0,69517.0,0.014392]
[1771056685298,0.05727529,69519.0,69515.0,0.014393]
[1771056685504,0.07166729,69519.0,69513.0,0.014393]
[1771056685704,0.014392,69517.0,69513.0,0.014393]
[1771056685998,0.014392,69517.0,69512.0,0.014393]
[1771056686395,0.029032,69517.0,69512.0,0.014393]
[1771056686592,0.01464,69517.0,69512.0,0.014393]
[1771056686903,0.014392,69518.0,69512.0,0.014393]
[1771056687104,0.014392,69518.0,69509.0,0.029034]
[1771056687303,0.014392,69518.0,69512.0,0.014393]
[1771056688502,0.014392,69518.0,69513.0,0.014393]
[1771056689308,0.08630729,69519.0,69513.0,0.014393]
[1771056689603,0.08630729,69519.0,69512.0,0.014393]
[1771056689604,0.14392,69527.0,69524.0,0.014391]
[1771056689899,0.07192511,69524.0,69518.0,0.01464]
[1771056690102,0.07192511,69524.0,69512.0,0.14392]
[1771056690103,0.014391,69522.0,69517.0,0.029032]
[1771056690295,0.014393,69516.0,69512.0,0.01464]
[1771056690494,0.014393,69516.0,69510.0,0.01464]
[1771056690695,0.014392,69520.0,69501.0,3.9e-07]
[1771056690696,0.51655124,69509.0,69501.0,3.9e-07]
[1771056690906,0.51655124,69509.0,69500.0,0.014396]
[1771056690907,7.2e-07,69501.0,69500.0,0.014396]
[1771056691105,0.49109542,69522.0,69503.0,0.014395]
[1771056691296,0.01464,69523.0,69511.0,0.46550253]
[1771056691504,0.05753165,69517.0,69515.0,0.014393]
[1771056691709,0.05753165,69517.0,69516.0,0.014393]
[1771056692006,0.07203501,69517.0,69513.0,0.014393]
[1771056692400,0.07203501,69517.0,69512.0,0.029033]
[1771056692600,0.07192485,69508.0,69504.0,0.014395]
[1771056692899,0.07192485,69508.0,69500.0,0.014396]
[1771056692900,0.54862827,69508.0,69500.0,0.029036]
[1771056693208,0.07192485,69508.0,69504.0,0.014395]
[1771056693704,0.07192485,69508.0,69502.0,0.014395]
[1771056694300,0.01464,69510.0,69505.0,0.014395]
[1771056694605,0.02690181,69508.0,69505.0,0.014395]
[1771056694808,0.02690181,69508.0,69506.0,0.014395]
[1771056695001,0.02690181,69508.0,69507.0,0.014394]
[1771056695996,0.02690181,69508.0,69506.0,0.014395]
[1771056697411,0.02690181,69508.0,69503.0,0.029035]
[1771056697708,0.02690181,69508.0,69499.0,0.46550453]
[1771056697709,0.02690181,69508.0,69504.0,0.01464]
[1771056697914,0.014393,69515.0,69504.0,0.01464]
[1771056697915,0.48170342,69537.0,69521.0,0.014391]
[1771056698110,0.719252,69555.0,69518.0,0.014392]
[1771056698111,0.014391,69525.0,69518.0,0.014392]
[1771056698405,0.07191922,69523.0,69518.0,0.014392]
[1771056699110,5.551e-05,69522.0,69518.0,0.014392]
[1771056699703,5.551e-05,69522.0,69516.0,0.014393]
[1771056699910,0.01444651,69522.0,69518.0,0.002]
[1771056700210,5.551e-05,69522.0,69518.0,0.016392]
[1771056700410,5.551e-05,69522.0,69514.0,0.014393]
[1771056700712,0.00016567,69522.0,69518.0,0.014392]
[1771056700905,0.00016567,69522.0,69516.0,0.029032]
[1771056701106,0.01455667,69522.0,69514.0,0.014393]
[1771056701412,0.00016567,69522.0,69518.0,0.014392]
[1771056701610,5.551e-05,69522.0,69517.0,0.014392]
[1771056701803,0.00016567,69522.0,69517.0,0.014392]
[1771056703109,0.00016567,69522.0,69518.0,0.014392]
[1771056703506,0.00016567,69522.0,69519.0,0.014392]
[1771056704107,0.00016567,69522.0,69507.0,0.014394]
[1771056704108,0.05752522,69508.0,69507.0,0.014394]
[1771056704300,0.01464,69515.0,69512.0,0.014393]
[1771056704500,0.01464,69516.0,69514.0,0.014393]
[1771056704707,5.551e-05,69522.0,69516.0,0.014392]
[1771056705004,0.01464,69521.0,69518.0,0.014392]
[1771056705308,0.07192224,69519.0,69518.0,0.014392]
[1771056706210,0.01464,69521.0,69519.0,0.014392]
[1771056706408,0.01439,69528.0,69519.0,0.014392]
[1771056706708,0.15856,69529.0,69522.0,0.014391]
[1771056706914,4.5e-07,69527.0,69525.0,0.014391]
[1771056707216,0.029029,69534.0,69528.0,0.01439]
[1771056707412,0.029029,69534.0,69524.0,0.48618128]
[1771056707413,1.7e-07,69525.0,69524.0,0.48618128]
[1771056707608,0.01464,69534.0,69531.0,0.014389]
[1771056708009,4.5e-07,69527.0,69524.0,0.48618128]
[1771056708314,0.07190601,69534.0,69531.0,0.014389]
[1771056708508,0.07190601,69534.0,69532.0,0.014389]
[1771056708814,0.07190601,69534.0,69531.0,0.014389]
[1771056709913,0.07190601,69534.0,69532.0,0.014389]
[1771056711417,1e-08,69534.0,69528.0,0.01439]
[1771056711721,1e-08,69534.0,69527.0,0.02903]
[1771056712022,1e-08,69534.0,69529.0,0.01439]
[1771056714415,1e-08,69534.0,69527.0,0.02903]
[1771056714820,1e-08,69534.0,69529.0,0.01439]
[1771056715023,1e-08,69534.0,69530.0,0.01439]
[1771056715321,1e-08,69534.0,69527.0,0.01464]
[1771056715322,0.014389,69533.0,69527.0,0.01464]
[1771056715522,1e-08,69534.0,69528.0,0.01439]
[1771056715723,1e-08,69534.0,69532.0,0.014389]
[1771056715911,1e-08,69534.0,69531.0,0.014389]
[1771056716114,1e-08,69534.0,69533.0,0.014389]
[1771056716311,0.0002,69549.0,69535.0,0.50057028]
[1771056716518,0.029026,69548.0,69540.0,0.014388]
[1771056716719,0.029026,69548.0,69539.0,0.014388]
[1771056716720,0.071901,69540.0,69539.0,0.014388]
[1771056717019,0.071901,69540.0,69536.0,0.01464]
[1771056717218,0.071901,69540.0,69535.0,0.014389]
[1771056717420,0.071901,69540.0,69536.0,0.01464]
[1771056718022,0.071901,69540.0,69536.0,0.029028]
[1771056719227,0.071901,69540.0,69536.0,0.01464]
[1771056719628,0.071901,69540.0,69535.0,0.014388]
[1771056719829,0.014388,69539.0,69533.0,0.014389]
[1771056720130,0.014388,69539.0,69531.0,0.14392]
[1771056720131,0.45262799,69593.0,69567.0,0.48618128]
[1771056720426,0.0002,69578.0,69570.0,0.014381]
[1771056720730,0.07187109,69569.0,69567.0,0.029022]
[1771056720923,0.01464,69575.0,69573.0,0.014381]
[1771056721124,0.014379,69580.0,69573.0,0.014381]
[1771056721328,0.45348407,69586.0,69580.0,0.014379]
[1771056721520,0.15856,69585.0,69579.0,0.01438]
[1771056721728,0.07186485,69575.0,69573.0,0.014381]
[1771056721926,0.014379,69582.0,69575.0,0.01438]
[1771056722123,0.014379,69581.0,69574.0,0.014381]
[1771056722432,0.46786307,69582.0,69574.0,0.014381]
[1771056722433,0.07186489,69575.0,69574.0,0.014381]
[1771056722834,0.01464,69581.0,69577.0,0.01438]
[1771056723022,0.07186489,69575.0,69574.0,0.014381]
[1771056723228,0.07186489,69575.0,69572.0,0.01464]
[1771056723426,0.07186489,69575.0,69569.0,0.029022]
[1771056723631,0.07186489,69575.0,69574.0,0.014381]
[1771056723828,0.07186489,69575.0,69564.0,0.014383]
[1771056723829,0.55436896,69575.0,69556.0,0.45699788]
[1771056724027,0.08650489,69575.0,69558.0,0.45699788]
[1771056724223,0.08650489,69575.0,69557.0,0.15852]
[1771056724224,0.08650489,69575.0,69571.0,0.014381]
[1771056724424,0.53998896,69575.0,69566.0,0.014382]
[1771056724936,0.53998896,69575.0,69565.0,0.014382]
[1771056725137,0.53998896,69575.0,69566.0,0.014382]
[1771056725635,0.53998896,69575.0,69568.0,0.014382]
[1771056725935,0.53998896,69575.0,69563.0,0.01464]
[1771056726837,0.53998896,69575.0,69565.0,0.014382]
[1771056727138,0.53998896,69575.0,69566.0,0.014382]
[1771056727331,0.53998896,69575.0,69563.0,0.01464]
[1771056727536,0.55436896,69575.0,69565.0,0.014382]
[1771056727731,0.53998896,69575.0,69566.0,0.014382]
[1771056727933,8.9e-07,69566.0,69555.0,0.01464]
[1771056728132,0.01464,69565.0,69562.0,0.014383]
[1771056728437,0.01464,69564.0,69560.0,0.014383]
[1771056728631,0.01464,69564.0,69557.0,0.014384]
[1771056728830,0.01464,69564.0,69559.0,0.014384]
[1771056729035,0.01464,69564.0,69561.0,0.014383]
[1771056729746,0.01464,69564.0,69557.0,0.014384]
[1771056729947,0.01464,69564.0,69559.0,0.00842182]
[1771056730244,0.46786707,69563.0,69554.0,0.01464]
[1771056730440,0.45348407,69563.0,69553.0,0.014385]
[1771056730643,0.46786707,69563.0,69555.0,0.014385]
[1771056730844,0.46786707,69563.0,69557.0,0.014384]
[1771056731152,0.46786707,69563.0,69553.0,0.014385]
[1771056731448,0.46786707,69563.0,69557.0,0.028768]
[1771056731639,0.014383,69561.0,69553.0,0.002]
[1771056731846,0.01464,69560.0,69551.0,0.01464]
[1771056732050,0.029024,69560.0,69551.0,0.01464]
[1771056732343,0.014384,69559.0,69557.0,0.002]
[1771056732544,0.48250807,69560.0,69551.0,0.014385]
[1771056732751,0.45348407,69558.0,69551.0,0.014385]
[1771056732950,0.01464,69557.0,69556.0,0.014384]
[1771056733345,0.01464,69557.0,69554.0,0.014385]
[1771056734155,0.14384089,69559.0,69558.0,0.014384]
[1771056734446,0.08653104,69559.0,69558.0,0.014384]
[1771056734643,0.08653104,69559.0,69556.0,0.014384]
[1771056734843,0.08653104,69559.0,69555.0,0.014384]
[1771056735044,0.08653104,69559.0,69553.0,0.014385]
[1771056735547,0.45348407,69566.0,69558.0,0.014384]
[1771056735746,0.15848,69565.0,69559.0,0.014384]
[1771056736048,0.05749743,69559.0,69558.0,0.014384]
[1771056736352,0.08652142,69559.0,69558.0,0.014384]
[1771056736551,0.08652142,69559.0,69554.0,0.014385]
[1771056736747,0.08652142,69559.0,69558.0,0.014384]
[1771056737845,0.158223,69565.0,69557.0,0.014384]
[1771056737846,0.14384,69565.0,69560.0,0.014383]
[1771056738049,0.14384,69565.0,69557.0,0.014384]
[1771056738050,4.3e-07,69559.0,69558.0,0.014384]
[1771056738351,0.14384,69565.0,69559.0,0.014384]
[1771056738652,3.9e-07,69559.0,69558.0,0.014384]
[1771056738844,0.00076908,69560.0,69559.0,0.014384]
[1771056739154,0.01464,69560.0,69559.0,0.014384]
[1771056739346,0.01464,69560.0,69558.0,0.001]
[1771056739347,2.2e-07,69559.0,69558.0,0.015384]
[1771056739554,2.2e-07,69559.0,69558.0,0.014384]
[1771056739849,0.014382,69567.0,69561.0,0.014383]
[1771056740054,0.014382,69567.0,69557.0,0.014384]
[1771056740055,4.3e-07,69559.0,69557.0,0.014384]
[1771056740249,0.01464,69561.0,69560.0,0.014383]
[1771056740447,0.14384,69566.0,69561.0,0.014383]
[1771056740748,2.2e-07,69559.0,69557.0,0.014384]
[1771056740958,0.14384,69566.0,69561.0,0.014383]
[1771056741149,0.01464,69565.0,69559.0,0.002]
[1771056741652,1e-08,69559.0,69558.0,0.014384]
[1771056741850,0.01464,69565.0,69558.0,0.014384]
[1771056742042,2e-07,69559.0,69557.0,0.014384]
[1771056742244,0.01464,69562.0,69558.0,0.014384]
[1771056742449,0.01464,69563.0,69559.0,0.014384]
[1771056742651,0.158222,69566.0,69559.0,0.014384]
[1771056743054,0.158222,69566.0,69560.0,0.014383]
[1771056743255,0.014383,69564.0,69557.0,0.014384]
[1771056743655,0.014383,69564.0,69558.0,0.014384]
[1771056743859,0.028766,69564.0,69558.0,0.014384]
[1771056744152,0.028766,69564.0,69557.0,0.014384]
[1771056744357,0.01464,69564.0,69558.0,0.014384]
[1771056744548,0.01464,69564.0,69560.0,0.014383]
[1771056744749,0.01464,69563.0,69561.0,0.014383]
[1771056745055,0.014382,69566.0,69560.0,0.014383]
[1771056745449,0.01464,69565.0,69560.0,0.014383]
[1771056746458,0.01464,69565.0,69561.0,0.014383]
[1771056746757,0.01464,69565.0,69563.0,0.014383]
[1771056747060,0.158222,69569.0,69560.0,0.014383]
[1771056747359,0.014382,69568.0,69562.0,0.014383]
[1771056747658,0.014382,69566.0,69560.0,0.014383]
[1771056747961,0.014383,69564.0,69557.0,0.014384]
[1771056748163,0.014383,69564.0,69559.0,0.014384]
[1771056749054,0.01464,69565.0,69561.0,0.014383]
[1771056749255,0.01464,69565.0,69549.0,0.14384]
[1771056749256,0.014383,69563.0,69554.0,0.014385]
[1771056749456,0.01464,69564.0,69557.0,0.014384]
[1771056749847,0.01464,69564.0,69558.0,0.014384]
[1771056750049,0.029023,69564.0,69558.0,0.014384]
[1771056750249,0.01464,69564.0,69558.0,0.014384]
[1771056750450,0.01464,69564.0,69561.0,0.014383]
[1771056750654,0.014382,69567.0,69561.0,0.014383]
[1771056750856,0.01464,69566.0,69561.0,0.014383]
[1771056751054,0.01464,69566.0,69560.0,0.014383]
[1771056751256,0.01464,69566.0,69561.0,0.014383]
[1771056751454,0.01464,69566.0,69560.0,0.014383]
[1771056751662,0.029022,69566.0,69559.0,0.014384]
[1771056751965,0.014383,69565.0,69558.0,0.014384]
[1771056752257,0.01464,69566.0,69552.0,0.01464]
[1771056752461,0.01464,69566.0,69563.0,0.014383]
[1771056752660,1e-06,69587.0,69586.0,0.014378]
[1771056752862,0.014377,69591.0,69583.0,0.014379]
[1771056753054,0.029017,69592.0,69585.0,0.014378]
[1771056753454,0.014377,69592.0,69585.0,0.014378]
[1771056753659,0.01464,69591.0,69585.0,0.014378]
[1771056753861,0.01464,69591.0,69586.0,0.014378]
[1771056754865,0.01464,69590.0,69586.0,0.014378]
[1771056755366,0.01464,69590.0,69586.0,0.016378]
[1771056755563,0.01464,69590.0,69587.0,0.014378]
[1771056755763,0.01464,69590.0,69586.0,0.016378]
[1771056755958,0.014377,69593.0,69586.0,0.016378]
[1771056756264,0.01464,69592.0,69586.0,0.016378]
[1771056756660,0.029017,69592.0,69586.0,0.016378]
[1771056756963,0.014378,69587.0,69582.0,0.01464]
[1771056757159,0.01464,69592.0,69582.0,0.01464]
[1771056757359,0.01464,69592.0,69572.0,0.014381]
[1771056757360,0.50578288,69584.0,69572.0,0.0002]
[1771056757552,0.01438,69579.0,69572.0,0.01484]
[1771056757752,0.01438,69577.0,69572.0,0.029221]
[1771056757964,0.01438,69578.0,69573.0,0.014381]
[1771056758169,0.01438,69578.0,69572.0,0.029221]
[1771056758468,0.029019,69581.0,69574.0,0.014381]
[1771056758672,0.01438,69579.0,69574.0,0.014381]
[1771056758860,0.01438,69579.0,69574.0,0.028762]
[1771056759170,0.014379,69580.0,69575.0,0.01438]
[1771056760663,0.014379,69580.0,69574.0,0.01438]
[1771056760664,0.01464,69580.0,69576.0,0.01438]
[1771056760865,0.01464,69580.0,69574.0,0.02876]
[1771056761166,0.01464,69580.0,69574.0,0.01738]
[1771056761366,0.014377,69594.0,69574.0,0.01738]
[1771056761367,0.014377,69593.0,69584.0,0.014379]
[1771056761675,0.014377,69593.0,69582.0,0.014379]
[1771056761967,0.014377,69590.0,69584.0,0.014378]
[1771056762271,0.014378,69589.0,69579.0,0.029019]
[1771056762457,0.01464,69588.0,69579.0,0.029019]
[1771056762963,0.014378,69586.0,69580.0,0.014379]
[1771056764072,0.014379,69583.0,69576.0,0.01438]
[1771056764368,0.48991433,69587.0,69580.0,0.014379]
[1771056764369,0.014378,69586.0,69580.0,0.014379]
[1771056765270,0.014378,69586.0,69580.0,0.015379]
[1771056765572,0.014378,69586.0,69580.0,0.001]
[1771056765573,0.014378,69585.0,69580.0,0.001]
[1771056765870,0.0146,69584.0,69580.0,0.001]
[1771056766773,0.014378,69588.0,69582.0,0.014379]
[1771056767075,0.028758,69585.0,69580.0,0.001]
[1771056767269,0.028978,69586.0,69580.0,0.001]
[1771056767574,0.028978,69586.0,69580.0,0.014379]
[1771056768667,0.028978,69586.0,69580.0,0.028758]
[1771056768861,0.014379,69585.0,69580.0,0.001]
[1771056769373,0.028978,69586.0,69580.0,0.015379]
[1771056770368,0.028978,69586.0,69580.0,0.001]
[1771056770369,0.014378,69585.0,69580.0,0.001]
[1771056770672,0.028978,69586.0,69580.0,0.015379]
[1771056771372,0.0146,69586.0,69580.0,0.001]
[1771056771574,0.0146,69586.0,69583.0,0.014379]
[1771056771876,0.0146,69592.0,69588.0,0.014378]
[1771056772262,0.1438,69595.0,69588.0,0.028756]
[1771056772578,0.0146,69593.0,69590.0,0.014377]
[1771056772771,0.0146,69594.0,69590.0,0.014377]
[1771056773072,0.0146,69594.0,69588.0,0.028756]
[1771056773266,0.0146,69594.0,69589.0,0.014377]
[1771056775062,0.0146,69594.0,69588.0,0.002]
[1771056775268,0.014375,69601.0,69589.0,0.014377]
[1771056775469,0.014375,69601.0,69588.0,0.002]
[1771056775470,0.014374,69606.0,69599.0,0.014375]
[1771056775666,0.014374,69608.0,69591.0,0.50348889]
[1771056775667,0.0146,69605.0,69598.0,0.014376]
[1771056775866,0.028974,69605.0,69598.0,0.014376]
[1771056776075,0.014374,69606.0,69598.0,0.014376]
[1771056776276,0.0146,69605.0,69601.0,0.014375]
[1771056776468,0.0146,69605.0,69602.0,0.014375]
[1771056776667,0.158174,69609.0,69601.0,0.014375]
[1771056776864,0.028974,69609.0,69603.0,0.014375]
[1771056777273,0.0146,69609.0,69603.0,0.014375]
[1771056777576,0.0002,69622.0,69604.0,0.50371189]
[1771056777870,0.0146,69621.0,69616.0,0.014372]
[1771056778471,0.0146,69621.0,69615.0,0.014372]
[1771056779070,0.01437,69624.0,69614.0,0.014372]